fUSD/lending_fUSD_20241224
["ID","MTS","AMOUNT","RATE_DAILY","PERIOD"]
[346501838,1735011109177,-500.0,0.00015342,2]
[346501839,1735011109187,-500.0,0.00015342,2]
[346501840,1735011109197,-683.71,0.00015342,2]
[346501841,1735011109206,-500.0,0.00015342,2]
[346501842,1735011109215,-1878.0,0.00015342,2]
[346501843,1735011109225,-500.0,0.00015342,2]
[346501844,1735011109234,-18977.0,0.00015342,2]
[346501845,1735011109245,-500.0,0.00015342,2]
[346501846,1735011109257,-1075.0,0.00015342,2]
[346501847,1735011109267,-760.03,0.00015342,2]
[346501848,1735011109277,-1641.11,0.00015342,2]
[346501849,1735011109287,-500.0,0.00015342,2]
[346501850,1735011109298,-500.0,0.00015342,2]
[346501851,1735011109307,-500.0,0.00015342,2]
[346501852,1735011109318,-1764.49,0.00015342,2]
[346501853,1735011109328,-1527.4287365,0.00015345,2]
[346501854,1735011109338,-438.1504153,0.00015345,2]
[346501855,1735011109348,-352.67991655,0.00015355,2]
[346501856,1735011109358,-3834.1935773,0.000154,2]
[346501857,1735011109368,-6631.00342435,0.00015422,2]
[346501858,1735011109377,-186.24,0.00015424,2]
[346501859,1735011109386,-1082.31050602,0.00015425,2]
[346501860,1735011109396,-3000.0,0.0001543,2]
[346501861,1735011109405,-172.46738495,0.00015512,2]
[346501862,1735011109415,-185.94792712,0.00015515,2]
[346501863,1735011109424,-1150.83837441,0.00015562,2]
[346501864,1735011109434,-3000.0,0.0001558,2]
[346501865,1735011109443,-500.0,0.00015581,2]
[346501866,1735011109452,-365.19,0.000156,2]
[346501867,1735011109462,-436.35,0.000156,2]
[346501868,1735011109471,-872.55,0.000156,2]
[346501869,1735011109481,-301.57,0.000156,2]
[346501870,1735011109490,-300.7,0.000156,2]
[346501871,1735011109500,-180.9617382,0.00015603,2]
[346501872,1735011109509,-1852.82,0.0001561,2]
[346501873,1735011109520,-500.0,0.0001561,2]
[346501874,1735011109529,-500.0,0.0001561,2]
[346501875,1735011109538,-2606.93,0.0001561,2]
[346501876,1735011109548,-2999.55,0.0001561,2]
[346501877,1735011109557,-1157.43,0.0001561,2]
[346501878,1735011109567,-606.11,0.0001561,2]
[346501879,1735011109579,-6426.45,0.0001561,2]
[346501880,1735011109589,-1172.56,0.0001561,2]
[346501881,1735011109599,-4243.49,0.0001561,2]
[346501882,1735011109608,-1763.65,0.0001561,2]
[346501883,1735011109618,-1114.010296,0.0001561,2]
[346501884,1735011109627,-1609.76,0.0001561,2]
[346501885,1735011109637,-1255.913597,0.0001561,2]
[346501886,1735011109647,-3445.2,0.0001561,2]
[346501887,1735011109657,-2865.43,0.0001561,2]
[346501888,1735011109667,-9494.21,0.0001561,2]
[346501889,1735011109677,-875.1,0.0001561,2]
[346501890,1735011109686,-9217.19,0.0001561,2]
[346501891,1735011109696,-2293.91,0.0001561,2]
[346501892,1735011109705,-1133.56,0.0001561,2]
[346501893,1735011109714,-500.0,0.0001561,2]
[346501894,1735011109723,-1695.02,0.0001561,2]
[346501895,1735011109732,-1707.6,0.0001561,2]
[346501896,1735011109742,-2242.13,0.0001561,2]
[346501897,1735011109751,-2349.54,0.0001561,2]
[346501898,1735011109760,-1817.06,0.0001561,2]
[346501899,1735011109769,-3224.69,0.0001561,2]
[346501900,1735011109779,-1391.02,0.0001561,2]
[346501901,1735011109788,-2776.88,0.0001561,2]
[346501902,1735011109797,-3101.23,0.0001561,2]
[346501903,1735011109807,-4039.9,0.0001561,2]
[346501904,1735011109817,-2093.55,0.0001561,2]
[346501905,1735011109826,-7546.19,0.0001561,2]
[346501906,1735011109835,-500.0,0.0001561,2]
[346501907,1735011109845,-6150.66,0.0001561,2]
[346501908,1735011109854,-824.32,0.0001561,2]
[346501909,1735011109864,-1376.04,0.00015612,2]
[346501910,1735011109874,-500.0,0.00015612,2]
[346501911,1735011109884,-500.0,0.00015612,2]
[346501912,1735011109894,-603.13,0.00015612,2]
[346501913,1735011109903,-500.0,0.00015612,2]
[346501914,1735011109912,-500.0,0.00015612,2]
[346501915,1735011109922,-500.0,0.00015612,2]
[346501916,1735011109931,-714.04,0.00015612,2]
[346501917,1735011109940,-518.45,0.00015612,2]
[346501918,1735011109949,-623.37,0.00015612,2]
[346501919,1735011109959,-500.0,0.00015612,2]
[346501920,1735011109969,-638.22,0.00015612,2]
[346501921,1735011109978,-500.0,0.00015612,2]
[346501922,1735011109988,-500.0,0.00015612,2]
[346501923,1735011109997,-309.98452657,0.00015612,2]
[346501924,1735011110006,-803.42,0.00015612,2]
[346501925,1735011110015,-500.0,0.00015612,2]
[346501926,1735011110024,-500.0,0.00015612,2]
[346501927,1735011110033,-833.06,0.00015612,2]
[346501928,1735011110047,-792.49,0.00015612,2]
[346501929,1735011110059,-500.0,0.00015612,2]
[346501930,1735011110069,-500.0,0.00015612,2]
[346501931,1735011110080,-764.06,0.00015612,2]
[346501932,1735011110091,-500.0,0.00015612,2]
[346501933,1735011110101,-500.0,0.00015612,2]
[346501934,1735011110111,-500.0,0.00015612,2]
[346501935,1735011110120,-500.0,0.00015612,2]
[346501936,1735011110130,-925.7,0.00015612,2]
[346501937,1735011110140,-500.0,0.00015612,2]
[346501938,1735011110150,-500.0,0.00015612,2]
[346501939,1735011110159,-500.0,0.00015612,2]
[346501940,1735011110169,-633.33,0.00015612,2]
[346501941,1735011110179,-500.0,0.00015612,2]
[346501942,1735011110189,-500.0,0.00015612,2]
[346501943,1735011110200,-559.32,0.00015612,2]
[346501944,1735011110210,-500.0,0.00015612,2]
[346501945,1735011110221,-500.0,0.00015612,2]
[346501946,1735011110231,-500.0,0.00015612,2]
[346501947,1735011110241,-756.47,0.00015612,2]
[346501948,1735011110251,-500.0,0.00015612,2]
[346501949,1735011110260,-500.0,0.00015612,2]
[346501950,1735011110269,-500.0,0.00015612,2]
[346501951,1735011110278,-500.0,0.00015612,2]
[346501952,1735011110287,-652.18,0.00015612,2]
[346501953,1735011110297,-500.0,0.00015612,2]
[346501954,1735011110307,-500.0,0.00015612,2]
[346501955,1735011110317,-500.0,0.00015612,2]
[346501956,1735011110326,-1162.34,0.00015612,2]
[346501957,1735011110335,-657.02,0.00015612,2]
[346501958,1735011110344,-500.0,0.00015612,2]
[346501959,1735011110354,-500.0,0.00015612,2]
[346501960,1735011110364,-500.0,0.00015612,2]
[346501961,1735011110373,-500.0,0.00015612,2]
[346501962,1735011110382,-750.75,0.00015612,2]
[346501963,1735011110392,-843.1,0.00015612,2]
[346501964,1735011110401,-2974.82,0.00015612,2]
[346501965,1735011110411,-1035.17,0.00015612,2]
[346501966,1735011110420,-500.0,0.00015612,2]
[346501967,1735011110429,-12237.72,0.00015612,2]
[346501968,1735011110439,-1473.91,0.00015612,2]
[346501969,1735011110448,-724.91,0.00015612,2]
[346501970,1735011110457,-1085.64,0.00015612,2]
[346501971,1735011110467,-500.0,0.00015612,2]
[346501972,1735011110476,-2487.66,0.00015612,2]
[346501973,1735011110485,-855.98,0.00015612,2]
[346501974,1735011110494,-772.32,0.00015612,2]
[346501975,1735011110504,-1607.65,0.00015612,2]
[346501976,1735011110514,-1245.31,0.00015612,2]
[346501977,1735011110523,-2261.57,0.00015612,2]
[346501978,1735011110533,-793.8,0.00015612,2]
[346501979,1735011110542,-500.0,0.00015612,2]
[346501980,1735011110551,-566.83,0.00015612,2]
[346501981,1735011110560,-1841.26,0.00015612,2]
[346501982,1735011110570,-500.0,0.00015612,2]
[346501983,1735011110584,-1675.73,0.00015612,2]
[346501984,1735011110593,-500.0,0.00015612,2]
[346501985,1735011110602,-1457.13,0.00015612,2]
[346501986,1735011110611,-500.0,0.00015612,2]
[346501987,1735011110621,-1294.02,0.00015612,2]
[346501988,1735011110631,-1344.13,0.00015612,2]
[346501989,1735011110640,-1732.9,0.00015612,2]
[346501990,1735011110649,-500.0,0.00015612,2]
[346501991,1735011110659,-913.87,0.00015612,2]
[346501992,1735011110669,-1087.59,0.00015612,2]
[346501993,1735011110678,-500.0,0.00015612,2]
[346501994,1735011110687,-500.0,0.00015612,2]
[346501995,1735011110696,-1777.07,0.00015612,2]
[346501996,1735011110706,-500.0,0.00015612,2]
[346501997,1735011110715,-500.0,0.00015612,2]
[346501998,1735011110723,-1013.56,0.00015612,2]
[346501999,1735011110733,-1109.62,0.00015612,2]
[346502000,1735011110742,-3611.54,0.00015612,2]
[346502001,1735011110751,-500.0,0.00015612,2]
[346502002,1735011110760,-500.0,0.00015612,2]
[346502003,1735011110768,-700.34,0.00015612,2]
[346502004,1735011110778,-1340.51,0.00015612,2]
[346502005,1735011110787,-1798.91,0.00015612,2]
[346502006,1735011110797,-500.0,0.00015612,2]
[346502007,1735011110807,-1108.03,0.00015612,2]
[346502008,1735011110818,-6420.88,0.00015612,2]
[346502009,1735011110827,-1834.74,0.00015612,2]
[346502010,1735011110837,-500.0,0.00015612,2]
[346502011,1735011110846,-1753.2,0.00015612,2]
[346502012,1735011110859,-3473.97,0.00015612,2]
[346502013,1735011110868,-500.0,0.00015612,2]
[346502014,1735011110877,-1098.98,0.00015612,2]
[346502015,1735011110886,-500.0,0.00015613,2]
[346502016,1735011110895,-500.0,0.00015613,2]
[346502017,1735011110905,-500.0,0.00015613,2]
[346502018,1735011110914,-500.0,0.00015613,2]
[346502019,1735011110923,-431.87608628,0.00015613,2]
[346502020,1735011110933,-219.36809703,0.00015613,2]
[346502021,1735011110942,-500.0,0.00015613,2]
[346502022,1735011110951,-500.0,0.00015613,2]
[346502023,1735011110960,-500.0,0.00015613,2]
[346502024,1735011110970,-500.0,0.00015613,2]
[346502025,1735011110979,-257.32651308,0.00015613,2]
[346502026,1735011110988,-500.0,0.00015613,2]
[346502027,1735011110996,-500.0,0.00015613,2]
[346502028,1735011111006,-500.0,0.00015613,2]
[346502029,1735011111015,-500.0,0.00015613,2]
[346502030,1735011111024,-500.0,0.00015613,2]
[346502031,1735011111033,-476.04014469,0.00015613,2]
[346502032,1735011111042,-500.0,0.00015613,2]
[346502033,1735011111051,-500.0,0.00015613,2]
[346502034,1735011111060,-500.0,0.00015613,2]
[346502035,1735011111069,-287.60941876,0.00015613,2]
[346502036,1735011111077,-500.0,0.00015613,2]
[346502037,1735011111086,-470.65707291,0.00015613,2]
[346502038,1735011111095,-500.0,0.00015613,2]
[346502039,1735011111104,-500.0,0.00015613,2]
[346502040,1735011111114,-491.8201247,0.00015613,2]
[346502041,1735011111123,-500.0,0.00015613,2]
[346502042,1735011111132,-500.0,0.00015613,2]
[346502043,1735011111142,-500.0,0.00015613,2]
[346502044,1735011111151,-500.0,0.00015613,2]
[346502045,1735011111160,-500.0,0.00015613,2]
[346502046,1735011111338,-500.0,0.00015613,2]
[346502047,1735011111351,-500.0,0.00015613,2]
[346502048,1735011111360,-500.0,0.00015613,2]
[346502049,1735011111370,-500.0,0.00015613,2]
[346502050,1735011111379,-500.0,0.00015613,2]
[346502051,1735011111388,-500.0,0.00015613,2]
[346502052,1735011111397,-500.0,0.00015613,2]
[346502053,1735011111406,-500.0,0.00015613,2]
[346502054,1735011111415,-500.0,0.00015613,2]
[346502055,1735011111424,-500.0,0.00015613,2]
[346502056,1735011111433,-500.0,0.00015613,2]
[346502057,1735011111442,-500.0,0.00015613,2]
[346502058,1735011111451,-500.0,0.00015613,2]
[346502059,1735011111460,-500.0,0.00015613,2]
[346502060,1735011111469,-500.0,0.00015613,2]
[346502061,1735011111479,-500.0,0.00015613,2]
[346502062,1735011111488,-500.0,0.00015613,2]
[346502063,1735011111497,-500.0,0.00015613,2]
[346502064,1735011111506,-500.0,0.00015613,2]
[346502065,1735011111516,-500.0,0.00015613,2]
[346502066,1735011111525,-500.0,0.00015613,2]
[346502067,1735011111535,-500.0,0.00015613,2]
[346502068,1735011111545,-500.0,0.00015613,2]
[346502069,1735011111554,-500.0,0.00015613,2]
[346502070,1735011111564,-370.55061132,0.00015613,2]
[346502071,1735011111574,-500.0,0.00015613,2]
[346502072,1735011111586,-500.0,0.00015613,2]
[346502073,1735011111595,-500.0,0.00015613,2]
[346502074,1735011111604,-500.0,0.00015613,2]
[346502075,1735011111614,-500.0,0.00015613,2]
[346502076,1735011111623,-500.0,0.00015613,2]
[346502077,1735011111632,-500.0,0.00015613,2]
[346502078,1735011111642,-500.0,0.00015613,2]
[346502079,1735011111651,-500.0,0.00015613,2]
[346502080,1735011111661,-500.0,0.00015613,2]
[346502081,1735011111670,-500.0,0.00015613,2]
[346502082,1735011111679,-500.0,0.00015613,2]
[346502083,1735011111688,-500.0,0.00015613,2]
[346502084,1735011111698,-500.0,0.00015613,2]
[346502085,1735011111707,-500.0,0.00015613,2]
[346502086,1735011111716,-500.0,0.00015613,2]
[346502087,1735011111725,-500.0,0.00015613,2]
[346502088,1735011111734,-500.0,0.00015613,2]
[346502089,1735011111744,-2197.64,0.00015613,2]
[346502090,1735011111753,-500.0,0.00015613,2]
[346502091,1735011111762,-500.0,0.00015613,2]
[346502092,1735011111771,-500.0,0.00015613,2]
[346502093,1735011111781,-500.0,0.00015613,2]
[346502094,1735011111790,-500.0,0.00015613,2]
[346502095,1735011111799,-924.29,0.00015613,2]
[346502096,1735011111808,-500.0,0.00015613,2]
[346502097,1735011111820,-500.0,0.00015613,2]
[346502098,1735011111829,-500.0,0.00015613,2]
[346502099,1735011111838,-3800.89,0.00015613,2]
[346502100,1735011111847,-500.0,0.00015613,2]
[346502101,1735011111857,-500.0,0.00015613,2]
[346502102,1735011111866,-500.0,0.00015613,2]
[346502103,1735011111875,-500.0,0.00015613,2]
[346502104,1735011111884,-4111.27,0.00015613,2]
[346502105,1735011111893,-3362.87,0.00015613,2]
[346502106,1735011111903,-500.0,0.00015613,2]
[346502107,1735011111912,-500.0,0.00015613,2]
[346502108,1735011111921,-500.0,0.00015613,2]
[346502109,1735011111930,-500.0,0.00015613,2]
[346502110,1735011111939,-500.0,0.00015613,2]
[346502111,1735011111948,-500.0,0.00015613,2]
[346502112,1735011111957,-500.0,0.00015613,2]
[346502113,1735011111966,-500.0,0.00015613,2]
[346502114,1735011111976,-944.42,0.00015613,2]
[346502115,1735011111985,-500.0,0.00015613,2]
[346502116,1735011111994,-500.0,0.00015613,2]
[346502117,1735011112004,-578.45,0.00015613,2]
[346502118,1735011112013,-500.0,0.00015613,2]
[346502119,1735011112023,-500.0,0.00015613,2]
[346502120,1735011112032,-1032.77,0.00015613,2]
[346502121,1735011112041,-500.0,0.00015613,2]
[346502122,1735011112051,-500.0,0.00015613,2]
[346502123,1735011112060,-3197.19,0.00015613,2]
[346502124,1735011112069,-500.0,0.00015613,2]
[346502125,1735011112079,-500.0,0.00015613,2]
[346502126,1735011112087,-500.0,0.00015613,2]
[346502127,1735011112097,-500.0,0.00015613,2]
[346502128,1735011112106,-500.0,0.00015613,2]
[346502129,1735011112114,-893.07,0.00015613,2]
[346502130,1735011112124,-500.0,0.00015613,2]
[346502131,1735011112133,-500.0,0.00015613,2]
[346502132,1735011112142,-500.0,0.00015613,2]
[346502133,1735011112151,-831.96,0.00015613,2]
[346502134,1735011112160,-500.54374953,0.00015613,2]
[346502135,1735011112169,-1264.9,0.00015613,2]
[346502136,1735011112178,-500.0,0.00015613,2]
[346502137,1735011112187,-500.0,0.00015613,2]
[346502138,1735011112196,-500.0,0.00015613,2]
[346502139,1735011112205,-3791.3,0.00015613,2]
[346502140,1735011112214,-500.0,0.00015613,2]
[346502141,1735011112223,-500.0,0.00015613,2]
[346502142,1735011112232,-1468.04,0.00015613,2]
[346502143,1735011112242,-618.66,0.00015613,2]
[346502144,1735011112251,-500.0,0.00015613,2]
[346502145,1735011112260,-500.0,0.00015613,2]
[346502146,1735011112269,-880.68,0.00015613,2]
[346502147,1735011112278,-4498.81,0.00015613,2]
[346502148,1735011112287,-980.14,0.00015613,2]
[346502149,1735011112297,-500.0,0.00015613,2]
[346502150,1735011112306,-845.95,0.00015613,2]
[346502151,1735011112316,-768.63,0.00015613,2]
[346502152,1735011112326,-1633.61,0.00015613,2]
[346502153,1735011112335,-10724.41,0.00015613,2]
[346502154,1735011112344,-500.0,0.00015613,2]
[346502155,1735011112353,-1907.04,0.00015613,2]
[346502156,1735011112363,-3409.97,0.00015613,2]
[346502157,1735011112372,-500.0,0.00015613,2]
[346502158,1735011112382,-500.0,0.00015613,2]
[346502159,1735011112391,-500.0,0.00015613,2]
[346502160,1735011112401,-3144.7,0.00015613,2]
[346502161,1735011112411,-7767.4,0.00015613,2]
[346502162,1735011112421,-3102.39,0.00015613,2]
[346502163,1735011112430,-2500.86,0.00015613,2]
[346502164,1735011112439,-16025.73,0.00015613,2]
[346502165,1735011112448,-511.21946292,0.00015613,2]
[346502166,1735011112458,-500.0,0.00015613,2]
[346502167,1735011112467,-6082.71,0.00015613,2]
[346502168,1735011112476,-500.0,0.00015613,2]
[346502169,1735011112486,-500.0,0.00015613,2]
[346502170,1735011112495,-2316.02,0.00015613,2]
[346502171,1735011112505,-1193.06,0.00015613,2]
[346502172,1735011112514,-500.0,0.00015613,2]
[346502173,1735011112523,-500.0,0.00015613,2]
[346502174,1735011112533,-500.0,0.00015613,2]
[346502175,1735011112542,-962.06,0.00015613,2]
[346502176,1735011112551,-500.0,0.00015613,2]
[346502177,1735011112561,-500.0,0.00015613,2]
[346502178,1735011112571,-301.58827469,0.00015613,2]
[346502179,1735011112584,-500.0,0.00015613,2]
[346502180,1735011112593,-599.65,0.00015613,2]
[346502181,1735011112602,-500.0,0.00015613,2]
[346502182,1735011112611,-500.0,0.00015613,2]
[346502183,1735011112621,-500.0,0.00015614,2]
[346502184,1735011112630,-500.0,0.00015614,2]
[346502185,1735011112640,-500.0,0.00015614,2]
[346502186,1735011112649,-500.0,0.00015614,2]
[346502187,1735011112660,-500.0,0.00015614,2]
[346502188,1735011112669,-500.0,0.00015614,2]
[346502189,1735011112678,-500.0,0.00015614,2]
[346502190,1735011112687,-511.03,0.00015614,2]
[346502191,1735011112696,-500.0,0.00015614,2]
[346502192,1735011112705,-500.0,0.00015614,2]
[346502193,1735011112715,-500.0,0.00015614,2]
[346502194,1735011112724,-500.0,0.00015614,2]
[346502195,1735011112733,-500.0,0.00015614,2]
[346502196,1735011112742,-500.0,0.00015614,2]
[346502197,1735011112751,-500.0,0.00015614,2]
[346502198,1735011112761,-500.0,0.00015614,2]
[346502199,1735011112770,-500.0,0.00015614,2]
[346502200,1735011112779,-500.0,0.00015614,2]
[346502201,1735011112788,-500.0,0.00015614,2]
[346502202,1735011112797,-500.0,0.00015614,2]
[346502203,1735011112806,-500.0,0.00015614,2]
[346502204,1735011112816,-500.0,0.00015614,2]
[346502205,1735011112825,-500.0,0.00015614,2]
[346502206,1735011112834,-500.0,0.00015614,2]
[346502207,1735011112843,-500.0,0.00015614,2]
[346502208,1735011112852,-500.0,0.00015614,2]
[346502209,1735011112861,-500.0,0.00015614,2]
[346502210,1735011112871,-500.0,0.00015614,2]
[346502211,1735011112880,-500.0,0.00015614,2]
[346502212,1735011112889,-500.0,0.00015614,2]
[346502213,1735011112899,-511.22,0.00015614,2]
[346502214,1735011112908,-500.0,0.00015614,2]
[346502215,1735011112917,-500.0,0.00015614,2]
[346502216,1735011112926,-963.35,0.00015614,2]
[346502217,1735011112935,-500.0,0.00015614,2]
[346502218,1735011112944,-817.97,0.00015614,2]
[346502219,1735011112954,-1137.67,0.00015614,2]
[346502220,1735011112963,-916.16,0.00015614,2]
[346502221,1735011112972,-500.0,0.00015614,2]
[346502222,1735011112982,-876.13,0.00015614,2]
[346502223,1735011112991,-500.0,0.00015614,2]
[346502224,1735011113000,-850.87,0.00015614,2]
[346502225,1735011113009,-809.33,0.00015614,2]
[346502226,1735011113018,-576.68,0.00015614,2]
[346502227,1735011113027,-500.0,0.00015614,2]
[346502228,1735011113037,-680.75,0.00015614,2]
[346502229,1735011113047,-1535.16,0.00015614,2]
[346502230,1735011113056,-500.0,0.00015614,2]
[346502231,1735011113066,-500.0,0.00015614,2]
[346502232,1735011113075,-835.68,0.00015614,2]
[346502233,1735011113085,-500.0,0.00015614,2]
[346502234,1735011113094,-11706.4,0.00015614,2]
[346502235,1735011113103,-659.12,0.00015614,2]
[346502236,1735011113113,-500.0,0.00015614,2]
[346502237,1735011113122,-653.62,0.00015614,2]
[346502238,1735011113132,-534.76,0.00015614,2]
[346502239,1735011113141,-1707.85,0.00015614,2]
[346502240,1735011113151,-500.0,0.00015614,2]
[346502241,1735011113160,-1321.6,0.00015614,2]
[346502242,1735011113169,-980.51,0.00015614,2]
[346502243,1735011113178,-1216.74,0.00015614,2]
[346502244,1735011113187,-941.42,0.00015614,2]
[346502245,1735011113197,-2484.72,0.00015614,2]
[346502246,1735011113207,-824.25,0.00015614,2]
[346502247,1735011113216,-766.19,0.00015614,2]
[346502248,1735011113226,-500.0,0.00015614,2]
[346502249,1735011113236,-500.0,0.00015614,2]
[346502250,1735011113245,-500.0,0.00015614,2]
[346502251,1735011113255,-1000.0,0.00015614,2]
[346502252,1735011113264,-500.0,0.00015614,2]
[346502253,1735011113275,-1396.04,0.00015614,2]
[346502254,1735011113285,-500.0,0.00015614,2]
[346502255,1735011113295,-635.05,0.00015614,2]
[346502256,1735011113304,-789.1,0.00015614,2]
[346502257,1735011113314,-500.0,0.00015614,2]
[346502258,1735011113323,-2682.71,0.00015614,2]
[346502259,1735011113333,-500.0,0.00015614,2]
[346502260,1735011113342,-940.58,0.00015614,2]
[346502261,1735011113352,-669.82,0.00015614,2]
[346502262,1735011113361,-1941.26,0.00015614,2]
[346502263,1735011113371,-575.68,0.00015614,2]
[346502264,1735011113386,-1285.44,0.00015614,2]
[346502265,1735011113399,-734.43,0.00015614,2]
[346502266,1735011113409,-500.0,0.00015614,2]
[346502267,1735011113419,-1247.11,0.00015614,2]
[346502268,1735011113500,-500.0,0.00015614,2]
[346502269,1735011113511,-1338.65,0.00015614,2]
[346502270,1735011113521,-1230.35,0.00015614,2]
[346502271,1735011113531,-500.0,0.00015614,2]
[346502272,1735011113541,-543.55,0.00015614,2]
[346502273,1735011113550,-500.0,0.00015614,2]
[346502274,1735011113560,-649.45,0.00015614,2]
[346502275,1735011113570,-500.0,0.00015614,2]
[346502276,1735011113587,-500.0,0.00015615,2]
[346502277,1735011113597,-500.0,0.00015615,2]
[346502278,1735011113607,-500.0,0.00015615,2]
[346502279,1735011113618,-500.0,0.00015615,2]
[346502280,1735011113627,-500.0,0.00015615,2]
[346502281,1735011113636,-500.0,0.00015615,2]
[346502282,1735011113646,-500.0,0.00015615,2]
[346502283,1735011113657,-500.0,0.00015615,2]
[346502284,1735011113666,-500.0,0.00015615,2]
[346502285,1735011113676,-500.0,0.00015615,2]
[346502286,1735011113685,-500.0,0.00015615,2]
[346502287,1735011113694,-500.0,0.00015615,2]
[346502288,1735011113704,-500.0,0.00015615,2]
[346502289,1735011113714,-500.0,0.00015615,2]
[346502290,1735011113723,-500.0,0.00015615,2]
[346502291,1735011113733,-500.0,0.00015615,2]
[346502292,1735011113743,-500.0,0.00015615,2]
[346502293,1735011113752,-500.0,0.00015615,2]
[346502294,1735011113761,-500.0,0.00015615,2]
[346502295,1735011113771,-500.0,0.00015615,2]
[346502296,1735011113780,-500.0,0.00015615,2]
[346502297,1735011113790,-500.0,0.00015615,2]
[346502298,1735011113799,-500.0,0.00015615,2]
[346502299,1735011113809,-500.0,0.00015615,2]
[346502300,1735011113818,-500.0,0.00015615,2]
[346502301,1735011113828,-500.0,0.00015615,2]
[346502302,1735011113838,-500.0,0.00015615,2]
[346502303,1735011113848,-500.0,0.00015615,2]
[346502304,1735011113857,-500.0,0.00015615,2]
[346502305,1735011113867,-500.0,0.00015615,2]
[346502306,1735011113876,-500.0,0.00015615,2]
[346502307,1735011113885,-509.34,0.00015615,2]
[346502308,1735011113895,-500.0,0.00015615,2]
[346502309,1735011113905,-500.0,0.00015615,2]
[346502310,1735011113914,-500.0,0.00015615,2]
[346502311,1735011113923,-500.0,0.00015615,2]
[346502312,1735011113932,-500.0,0.00015615,2]
[346502313,1735011113942,-500.0,0.00015615,2]
[346502314,1735011113952,-594.29,0.00015615,2]
[346502315,1735011113961,-500.0,0.00015615,2]
[346502316,1735011113970,-670.25,0.00015615,2]
[346502317,1735011113979,-553.58,0.00015615,2]
[346502318,1735011113989,-1203.72,0.00015615,2]
[346502319,1735011113998,-500.0,0.00015615,2]
[346502320,1735011114007,-500.0,0.00015615,2]
[346502321,1735011114016,-500.0,0.00015615,2]
[346502322,1735011114025,-500.0,0.00015615,2]
[346502323,1735011114034,-500.0,0.00015615,2]
[346502324,1735011114043,-627.9,0.00015615,2]
[346502325,1735011114052,-500.0,0.00015615,2]
[346502326,1735011114061,-500.0,0.00015615,2]
[346502327,1735011114070,-500.0,0.00015615,2]
[346502328,1735011114079,-500.0,0.00015615,2]
[346502329,1735011114088,-500.0,0.00015615,2]
[346502330,1735011114097,-151.0,0.00015615,2]
[346502331,1735011114106,-1878.0,0.00015616,2]
[346502332,1735011114116,-1075.0,0.00015616,2]
[346502333,1735011114125,-2048.58,0.00015616,2]
[346502334,1735011114135,-1779.8,0.00015616,2]
[346502335,1735011114145,-1311.88,0.00015616,2]
[346502336,1735011114154,-3042.34,0.00015616,2]
[346502337,1735011114163,-500.0,0.00015616,2]